bitfinex-derivatives/quotes_SOLF0:USTF0_20260308
["timestamp","ask_amount","ask_price","bid_price","bid_amount"]
[1773008423922,10.47723882,80.867,80.781,13.91744455]
[1773008424118,26.29188868,80.881,80.816,13.91744455]
[1773008424321,10.48409799,80.88,80.816,13.91744455]
[1773008424622,10.48409799,80.879,80.816,13.91744455]
[1773008424822,21.86618444,80.92,80.816,13.91744455]
[1773008424823,10.48532706,80.897,80.816,13.91744455]
[1773008425022,15.16388868,80.907,80.816,13.91744455]
[1773008425218,15.16388868,80.905,80.816,13.91744455]
[1773008425422,11.131,80.857,80.816,13.91744455]
[1773008425621,15.16388868,80.87,80.816,13.91744455]
[1773008425820,11.132,80.851,80.786,13.91744455]
[1773008426021,15.16388868,80.868,80.786,13.91744455]
[1773008426217,15.16388868,80.866,80.786,13.91744455]
[1773008426414,10.47995573,80.865,80.786,13.91744455]
[1773008426614,10.47995573,80.864,80.786,13.91744455]
[1773008426825,11.133,80.844,80.787,13.91744455]
[1773008427024,15.16388868,80.86,80.787,13.91744455]
[1773008427321,15.16388868,80.858,80.787,13.91744455]
[1773008427825,11.133,80.844,80.788,11.14]
[1773008428018,29.34348958,80.922,80.735,24.44991852]
[1773008428019,15.16388868,80.856,80.736,13.91744455]
[1773008428220,22.256,80.88,80.736,13.91744455]
[1773008428221,15.16388868,80.854,80.736,13.91744455]
[1773008428419,11.135,80.831,80.769,13.91744455]
[1773008428822,22.256,80.88,80.769,13.91744455]
[1773008428823,25.64330776,80.85,80.769,13.91744455]
[1773008429024,15.16388868,80.85,80.769,13.91744455]
[1773008429225,15.16388868,80.85,80.793,13.91744455]
[1773008429621,15.16388868,80.85,80.735,24.44991852]
[1773008429622,15.16388868,80.85,80.774,13.91744455]
[1773008430824,11.134,80.835,80.777,11.142]
[1773008431023,15.16388868,80.85,80.778,13.91744455]
[1773008432623,11.135,80.83,80.78,11.141]
[1773008432827,15.16388868,80.85,80.781,15.33912533]
[1773008433230,14.32249791,80.87,80.792,15.33912533]
[1773008433826,11.1046546,80.893,80.792,15.33912533]
[1773008433827,14.32249791,80.869,80.792,15.33912533]
[1773008434031,14.32249791,80.869,80.793,15.33912533]
[1773008435031,11.131,80.853,80.802,11.138]
[1773008435434,14.32249791,80.869,80.793,15.33912533]
[1773008436235,11.133,80.844,80.793,15.33912533]
[1773008437536,11.134,80.837,80.793,15.33912533]
[1773008439839,14.32249791,80.852,80.779,15.33912533]
[1773008440341,11.133,80.845,80.796,15.33912533]
[1773008440741,14.32249791,80.852,80.796,15.33912533]
[1773008441139,14.32249791,80.852,80.737,15.33912533]
[1773008441337,14.32249791,80.85,80.737,15.33912533]
[1773008441644,14.32249791,80.85,80.712,22.302]
[1773008441645,14.32249791,80.814,80.752,15.33912533]
[1773008441835,14.32249791,80.848,80.752,15.33912533]
[1773008442032,11.137,80.809,80.763,11.144]
[1773008442238,11.137,80.809,80.764,15.33912533]
[1773008442440,14.32249791,80.812,80.732,15.33912533]
[1773008442639,14.32249791,80.812,80.741,15.33912533]
[1773008443033,14.32249791,80.812,80.729,15.33912533]
[1773008443233,14.32249791,80.794,80.729,15.33912533]
[1773008443637,11.141,80.782,80.73,11.148]
[1773008444241,11.141,80.782,80.729,15.33912533]
[1773008444444,14.32249791,80.794,80.729,15.33912533]
[1773008444640,14.32249791,80.794,80.594,173.717]
[1773008444641,14.32249791,80.794,80.703,15.33912533]
[1773008444840,14.32249791,80.794,80.659,22.317]
[1773008444841,11.141,80.781,80.713,15.33912533]
[1773008445144,14.32249791,80.794,80.713,15.33912533]
[1773008445444,14.32249791,80.782,80.716,15.33912533]
[1773008445839,11.14,80.794,80.735,11.148]
[1773008446044,14.32249791,80.801,80.716,15.33912533]
[1773008446440,11.141,80.782,80.726,15.33912533]
[1773008446841,14.32249791,80.801,80.726,15.33912533]
[1773008447239,14.32249791,80.801,80.738,15.33912533]
[1773008447443,14.32249791,80.828,80.738,15.33912533]
[1773008447645,14.32249791,80.856,80.738,15.33912533]
[1773008448042,14.32249791,80.856,80.78,15.33912533]
[1773008448644,14.32249791,80.856,80.791,15.33912533]
[1773008449941,14.32249791,80.878,80.791,15.33912533]
[1773008450349,11.126,80.892,80.819,15.33912533]
[1773008450541,10.52635584,80.896,80.819,15.33912533]
[1773008450542,10.52635584,80.891,80.819,15.33912533]
[1773008450741,14.86552393,80.932,80.749,22.292]
[1773008450742,14.32249791,80.889,80.75,15.33912533]
[1773008450943,11.13,80.865,80.792,15.33912533]
[1773008451745,14.32249791,80.87,80.75,15.33912533]
[1773008451942,14.32249791,80.868,80.75,15.33912533]
[1773008452247,14.32249791,80.867,80.793,15.33912533]
[1773008452647,14.32249791,80.867,80.721,15.33912533]
[1773008452850,14.32249791,80.865,80.721,15.33912533]
[1773008453148,14.32249791,80.863,80.721,15.33912533]
[1773008453348,14.32249791,80.861,80.721,15.33912533]
[1773008453546,10.54828498,80.862,80.721,15.33912533]
[1773008453547,10.54828498,80.869,80.785,15.33912533]
[1773008453745,14.32249791,80.875,80.785,15.33912533]
[1773008453941,14.32249791,80.875,80.79,15.33912533]
[1773008453942,11.131,80.853,80.79,15.33912533]
[1773008454142,14.32249791,80.872,80.79,15.33912533]
[1773008454338,14.32249791,80.87,80.79,15.33912533]
[1773008454547,14.32249791,80.863,80.793,26.47912533]
[1773008454740,14.32249791,80.863,80.794,15.33912533]
[1773008455843,11.131,80.859,80.794,15.33912533]
[1773008456239,14.32249791,80.884,80.798,15.33912533]
[1773008456940,14.32249791,80.856,80.798,15.33912533]
[1773008457345,14.32249791,80.856,80.72,22.3]
[1773008457346,14.32249791,80.856,80.721,15.33912533]
[1773008457544,14.32249791,80.854,80.721,15.33912533]
[1773008457854,14.32249791,80.852,80.769,15.33912533]
[1773008458348,11.134,80.832,80.769,15.33912533]
[1773008458549,10.5488447,80.85,80.769,15.33912533]
[1773008458750,14.32249791,80.852,80.769,15.33912533]
[1773008459851,227.22348958,80.91,80.769,15.33912533]
[1773008459852,11.135,80.828,80.769,15.33912533]
[1773008460539,11.136,80.817,80.769,15.33912533]
[1773008460740,14.32249791,80.831,80.75,15.33912533]
[1773008460943,14.32249791,80.829,80.75,15.33912533]
[1773008461141,14.32249791,80.827,80.75,15.33912533]
[1773008461347,10.54316354,80.826,80.75,15.33912533]
[1773008461644,14.32249791,80.827,80.754,15.33912533]
[1773008462353,14.32249791,80.845,80.754,15.33912533]
[1773008463041,14.32249791,80.845,80.775,14.36820852]
[1773008463348,14.61431273,80.843,80.757,14.36820852]
[1773008463541,14.61431273,80.841,80.758,14.36820852]
[1773008464544,14.61431273,80.841,80.767,14.36820852]
[1773008464745,14.61431273,80.839,80.719,14.36820852]
[1773008465154,14.61431273,80.837,80.756,14.36820852]
[1773008465351,14.61431273,80.835,80.756,14.36820852]
[1773008466344,11.136,80.822,80.761,14.13183089]
[1773008466550,15.44315107,80.853,80.761,14.13183089]
[1773008467049,15.44315107,80.853,80.783,14.13183089]
[1773008467244,15.44315107,80.871,80.783,14.13183089]
[1773008467450,15.44315107,80.865,80.783,14.13183089]
[1773008467644,11.135,80.827,80.783,14.13183089]
[1773008467854,15.44315107,80.843,80.72,14.13183089]
[1773008468457,11.12953615,80.863,80.72,14.13183089]
[1773008468458,11.138,80.808,80.754,14.13183089]
[1773008468658,15.44315107,80.823,80.754,14.13183089]
[1773008470252,11.14,80.792,80.754,14.13183089]
[1773008470453,15.44315107,80.823,80.739,11.147]
[1773008470652,15.44315107,80.821,80.734,14.13183089]
[1773008470852,11.14,80.794,80.735,11.148]
[1773008471051,15.44315107,80.8,80.735,11.148]
[1773008472253,15.44315107,80.793,80.685,14.13183089]
[1773008472454,15.44315107,80.791,80.685,14.13183089]
[1773008472756,11.144,80.763,80.685,14.13183089]
[1773008473158,11.143,80.772,80.71,25.28283089]
[1773008473358,11.143,80.772,80.711,14.13183089]
[1773008473559,15.44315107,80.789,80.711,14.13183089]
[1773008474353,11.144,80.764,80.713,11.151]
[1773008475055,11.144,80.764,80.711,14.13183089]
[1773008475460,15.44315107,80.772,80.711,14.13183089]
[1773008476856,11.143,80.771,80.712,11.151]
[1773008477157,15.44315107,80.772,80.712,14.13183089]
[1773008477455,15.44315107,80.809,80.712,14.13183089]
[1773008477659,15.44315107,80.807,80.712,14.13183089]
[1773008477957,15.44315107,80.805,80.712,14.13183089]
[1773008478157,15.44315107,80.803,80.712,14.13183089]
[1773008478358,15.44315107,80.802,80.712,14.13183089]
[1773008478550,11.143,80.766,80.712,14.13183089]
[1773008478753,15.44315107,80.784,80.686,14.13183089]
[1773008479862,11.145,80.755,80.686,14.13183089]
[1773008480371,15.44315107,80.76,80.703,14.13183089]
[1773008481060,15.44315107,80.781,80.703,14.13183089]
[1773008481459,11.144,80.763,80.703,14.13183089]
[1773008481666,26.58715107,80.763,80.703,14.13183089]
[1773008482560,11.143,80.772,80.718,14.13183089]
[1773008482766,15.44315107,80.783,80.718,14.13183089]
[1773008484260,15.44315107,80.783,80.679,20.60040011]
[1773008484261,11.145,80.754,80.706,11.152]
[1773008484661,15.44315107,80.786,80.718,14.13183089]
[1773008484866,15.44315107,80.786,80.685,14.13183089]
[1773008485858,15.44315107,80.786,80.71,14.13183089]
[1773008486361,15.44315107,80.764,80.691,14.13183089]
[1773008486766,11.144,80.761,80.715,11.15]
[1773008487169,15.44315107,80.805,80.711,14.13183089]
[1773008487464,15.44315107,80.804,80.711,14.13183089]
[1773008488370,15.44315107,80.765,80.711,14.13183089]
[1773008489070,11.144,80.764,80.711,14.13183089]
[1773008489268,15.44315107,80.784,80.711,14.13183089]
[1773008489664,15.44315107,80.784,80.737,11.147]
[1773008489865,15.44315107,80.803,80.738,14.13183089]
[1773008490074,15.44315107,80.822,80.738,14.13183089]
[1773008490268,11.135,80.825,80.768,14.13183089]
[1773008490469,15.44315107,80.837,80.768,14.13183089]
[1773008490771,15.44315107,80.866,80.768,14.13183089]
[1773008491072,15.44315107,80.844,80.768,14.13183089]
[1773008492768,11.136,80.823,80.775,11.142]
[1773008492968,15.44315107,80.844,80.768,14.13183089]
[1773008493566,15.35686703,80.868,80.785,14.716833]
[1773008494271,11.133,80.844,80.798,11.139]
[1773008494470,15.35686703,80.868,80.798,11.139]
[1773008494671,15.35686703,80.868,80.799,14.716833]
[1773008494870,11.131,80.856,80.802,11.138]
[1773008495074,15.35686703,80.888,80.803,14.716833]
[1773008495573,15.35686703,80.875,80.812,11.137]
[1773008495771,15.35686703,80.875,80.803,14.716833]
[1773008496070,15.35686703,80.875,80.749,22.292]
[1773008496071,11.13,80.866,80.806,14.716833]
[1773008496270,15.35686703,80.875,80.806,14.716833]
[1773008496669,15.35686703,80.875,80.762,22.288]
[1773008496670,15.35686703,80.875,80.823,25.851833]
[1773008496869,11.127,80.884,80.824,14.716833]
[1773008497075,22.244,80.923,80.824,14.716833]
[1773008497076,15.35686703,80.883,80.824,14.716833]
[1773008497574,15.35686703,80.883,80.828,14.716833]
[1773008497978,11.125,80.898,80.831,14.716833]
[1773008498173,15.35686703,80.897,80.831,14.716833]
[1773008500179,11.125,80.9,80.831,14.716833]
[1773008501173,11.123,80.912,80.845,14.716833]
[1773008501772,15.35686703,80.903,80.845,14.716833]
[1773008502975,15.35686703,80.903,80.828,14.716833]
[1773008503178,15.35686703,80.923,80.828,14.716833]
[1773008503585,15.35686703,80.902,80.839,14.716833]
[1773008503976,11.125,80.903,80.839,14.716833]
[1773008504774,11.125,80.903,80.842,11.133]
[1773008504982,11.125,80.903,80.843,14.716833]
[1773008505780,15.35686703,80.92,80.795,22.279]
[1773008505781,11.123,80.913,80.856,14.716833]
[1773008506083,15.35686703,80.893,80.839,11.133]
[1773008506482,15.35686703,80.893,80.827,14.716833]
[1773008506779,11.128,80.88,80.827,14.716833]
[1773008507283,11.128,80.88,80.828,11.135]
[1773008508687,22.243,80.928,80.828,11.135]
[1773008508688,26.48486703,80.876,80.828,11.135]
[1773008509082,15.35686703,80.852,80.791,14.716833]
[1773008509283,15.35686703,80.852,80.747,14.716833]
[1773008509781,15.35686703,80.852,80.788,11.14]
[1773008510087,15.35686703,80.852,80.775,14.716833]
[1773008510285,15.35686703,80.838,80.779,11.141]
[1773008510488,15.35686703,80.838,80.719,22.3]
[1773008510683,15.35686703,80.838,80.72,14.716833]
[1773008510878,15.35686703,80.838,80.775,14.716833]
[1773008511085,15.35686703,80.88,80.775,14.716833]
[1773008511589,15.35686703,80.863,80.8,14.716833]
[1773008511985,15.35686703,80.853,80.803,11.138]
[1773008512190,15.35686703,80.853,80.783,14.716833]
[1773008512585,11.134,80.832,80.783,14.716833]
[1773008513889,15.35686703,80.853,80.783,14.716833]
[1773008515688,15.35686703,80.898,80.783,14.716833]
[1773008517489,15.35686703,80.895,80.783,14.716833]
[1773008518195,15.35686703,80.895,80.686,14.716833]
[1773008518597,15.35686703,80.894,80.686,14.716833]
[1773008519300,15.35686703,80.861,80.686,14.716833]
[1773008519497,15.35686703,80.861,80.694,14.716833]
[1773008520497,15.35686703,80.861,80.701,24.65]
[1773008520696,15.35686703,80.898,80.713,24.65]
[1773008520892,15.35686703,80.898,80.724,14.716833]
[1773008525007,15.35686703,80.898,80.729,14.8923989]
[1773008525699,15.35686703,80.898,80.731,14.8923989]
[1773008528504,15.35686703,80.898,80.733,15.20723476]
[1773008529103,14.62086221,80.897,80.733,15.20723476]
[1773008530205,14.62086221,80.895,80.733,15.20723476]
[1773008530404,14.62086221,80.893,80.733,15.20723476]
[1773008531306,14.62086221,80.881,80.733,15.20723476]
[1773008531503,14.62086221,80.879,80.733,15.20723476]
[1773008531704,14.62086221,80.877,80.733,15.20723476]
[1773008533311,14.62086221,80.875,80.733,15.20723476]
[1773008533512,14.62086221,80.873,80.733,15.20723476]
[1773008533906,14.62086221,80.871,80.733,15.20723476]
[1773008534213,14.62086221,80.869,80.733,15.20723476]
[1773008534407,14.62086221,80.867,80.733,15.20723476]
[1773008534604,14.62086221,80.865,80.733,15.20723476]
[1773008534905,14.62086221,80.863,80.733,15.20723476]
[1773008537712,10.53351376,80.862,80.733,15.20723476]
[1773008538014,14.62086221,80.861,80.733,15.20723476]
[1773008542517,14.62086221,80.861,80.734,12.32]
[1773008542715,15.79105823,80.859,80.739,15.81051235]
[1773008542916,15.79105823,80.874,80.739,15.81051235]
[1773008547812,15.79105823,80.874,80.743,12.32]
[1773008548016,15.79105823,80.923,80.753,15.81051235]
[1773008548217,15.79105823,80.921,80.77,24.65]
[1773008548523,15.79105823,80.921,80.771,15.81051235]
[1773008553723,15.81364195,80.919,80.771,15.81051235]
[1773008553925,15.81364195,80.917,80.771,15.81051235]
[1773008554122,15.81364195,80.915,80.771,15.81051235]
[1773008554429,15.81364195,80.913,80.771,15.81051235]
[1773008554633,15.81364195,80.911,80.771,15.81051235]
[1773008554824,15.81364195,80.91,80.771,15.81051235]
[1773008555020,15.81364195,80.909,80.771,15.81051235]
[1773008555219,15.81364195,80.907,80.771,15.81051235]
[1773008555429,15.81364195,80.905,80.771,15.81051235]
[1773008555727,2.15186077,80.942,80.771,15.81051235]
[1773008555728,15.81364195,80.903,80.771,15.81051235]
[1773008555933,15.81364195,80.901,80.771,15.81051235]
[1773008556132,15.81364195,80.9,80.771,15.81051235]
[1773008556832,15.81364195,80.898,80.771,15.81051235]
[1773008557033,15.81364195,80.896,80.771,15.81051235]
[1773008557235,15.81364195,80.895,80.771,15.81051235]
[1773008557428,15.81364195,80.894,80.771,15.81051235]
[1773008558224,10.52401096,80.893,80.771,15.81051235]
[1773008558534,15.81364195,80.891,80.771,15.81051235]
[1773008560335,15.81364195,80.889,80.771,15.81051235]
[1773008563323,15.81364195,80.887,80.771,15.81051235]
[1773008564431,15.81364195,80.885,80.771,15.81051235]
[1773008564634,15.81364195,80.883,80.771,15.81051235]
[1773008564834,15.81364195,80.881,80.771,15.81051235]
[1773008565135,15.81364195,80.879,80.771,15.81051235]
[1773008566036,15.81364195,80.891,80.802,15.11307822]
[1773008566733,15.81364195,80.891,80.823,15.11307822]
[1773008567536,15.81364195,80.887,80.838,11.133]
[1773008569032,15.81364195,80.885,80.806,15.11307822]
[1773008570139,15.81364195,80.874,80.806,15.11307822]
[1773008570641,15.81364195,80.874,80.832,11.134]
[1773008570841,15.81364195,80.874,80.806,15.11307822]
[1773008571137,15.81364195,80.874,80.834,11.134]
[1773008571537,15.81364195,80.874,80.806,15.11307822]
[1773008573741,15.81364195,80.874,80.837,11.134]
[1773008575956,15.81364195,80.874,80.83,11.134]
[1773008576452,15.81364195,80.874,80.839,11.133]
[1773008576848,15.81364195,80.874,80.82,15.11307822]
[1773008577959,15.81364195,80.874,80.836,11.134]
[1773008578549,15.81364195,80.874,80.805,22.276]
[1773008578752,15.81364195,80.874,80.763,176.0]
[1773008578753,15.81364195,80.872,80.786,15.11307822]
[1773008579145,15.81364195,80.903,80.827,15.11307822]
[1773008579750,15.81364195,80.903,80.851,11.132]
[1773008580255,15.81364195,80.92,80.843,15.11307822]
[1773008580446,15.81364195,80.92,80.869,15.11307822]
[1773008580754,15.81364195,80.92,80.853,15.11307822]
[1773008581750,15.81364195,80.92,80.794,15.11307822]
[1773008582254,15.81364195,80.918,80.842,11.133]
[1773008582448,15.81364195,80.916,80.842,11.133]
[1773008583056,15.52713662,80.914,80.832,15.11307822]
[1773008583252,15.52713662,80.912,80.832,15.11307822]
[1773008583560,15.52713662,80.912,80.846,14.37728335]
[1773008584448,15.52713662,80.912,80.849,11.132]
[1773008584954,15.52713662,80.912,80.848,11.132]
[1773008585157,15.52713662,80.912,80.832,14.37728335]
[1773008585858,15.13305448,80.929,80.868,14.98265963]
[1773008586956,15.13305448,80.929,80.869,11.129]
[1773008587156,15.13305448,80.929,80.869,26.11165963]
[1773008587356,15.13305448,80.945,80.869,14.98265963]
[1773008587558,15.13305448,80.945,80.823,14.98265963]
[1773008588660,2.15075029,80.976,80.868,11.129]
[1773008588661,15.13305448,80.94,80.868,11.129]
[1773008588856,15.13305448,80.938,80.868,11.129]
[1773008589054,15.13305448,80.938,80.868,14.98265963]
[1773008589559,15.13305448,80.958,80.868,14.98265963]
[1773008589956,15.13305448,80.956,80.886,11.127]
[1773008590254,15.13305448,80.954,80.868,14.98265963]
[1773008590454,15.13305448,80.941,80.882,11.127]
[1773008590753,15.13305448,80.941,80.797,12.37]
[1773008590754,15.13305448,80.941,80.819,14.98265963]
[1773008591356,15.13305448,80.92,80.844,14.98265963]
[1773008591757,15.13305448,80.92,80.857,11.131]
[1773008592064,15.13305448,80.92,80.844,14.98265963]
[1773008592362,15.13305448,80.92,80.865,11.13]
[1773008592952,15.13305448,80.92,80.856,11.131]
[1773008593259,15.13305448,80.92,80.842,14.98265963]
[1773008593660,15.13305448,80.92,80.865,14.98265963]
[1773008595966,15.13305448,80.92,80.866,11.129]
[1773008596166,15.13305448,80.92,80.865,14.98265963]
[1773008597756,15.13305448,80.935,80.861,14.98265963]
[1773008598363,22.23,80.974,80.868,11.129]
[1773008598364,15.13305448,80.924,80.868,11.129]
[1773008599467,15.13305448,80.924,80.878,11.128]
[1773008599658,15.13305448,80.924,80.861,14.98265963]
[1773008600663,15.13305448,80.941,80.878,14.98265963]
[1773008601460,15.13305448,80.938,80.863,14.98265963]
[1773008602371,15.13305448,80.933,80.885,11.127]
[1773008604880,15.13305448,80.933,80.892,11.126]
[1773008605177,15.13305448,80.93,80.863,14.98265963]
[1773008605974,15.13305448,80.928,80.882,11.127]
[1773008606374,15.13305448,80.928,80.863,14.98265963]
[1773008606573,15.13305448,80.908,80.858,11.131]
[1773008606878,15.13305448,80.908,80.834,14.98265963]
[1773008607073,15.13305448,80.883,80.815,14.98265963]
[1773008607571,15.13305448,80.876,80.815,14.98265963]
[1773008608567,15.13305448,80.876,80.833,11.134]
[1773008608871,15.13305448,80.893,80.83,14.98265963]
[1773008609173,15.13305448,80.893,80.841,11.133]
[1773008609475,15.13305448,80.893,80.83,14.98265963]
[1773008610880,15.13305448,80.891,80.831,11.134]
[1773008611077,15.13305448,80.891,80.77,14.98265963]
[1773008611273,11.128,80.878,80.813,11.137]
[1773008611477,15.13305448,80.877,80.813,11.137]
[1773008612776,11.129,80.873,80.813,11.137]
[1773008612978,14.94550753,80.872,80.813,11.137]
[1773008615786,14.94550753,80.872,80.805,15.63233313]
[1773008616884,14.94550753,80.86,80.807,11.138]
[1773008617588,14.94550753,80.845,80.708,15.63233313]
[1773008617885,14.94550753,80.843,80.708,15.63233313]
[1773008618080,14.94550753,80.793,80.735,15.63233313]
[1773008618787,14.94550753,80.793,80.736,26.77933313]
[1773008619584,14.94550753,80.816,80.749,15.63233313]
[1773008620284,14.94550753,80.816,80.753,15.63233313]
[1773008620491,14.94550753,80.871,80.753,15.63233313]
[1773008621083,14.94550753,80.89,80.778,15.63233313]
[1773008621689,14.94550753,80.878,80.804,15.63233313]
[1773008622190,14.94550753,80.878,80.821,15.63233313]
[1773008622381,14.94550753,80.929,80.821,15.63233313]
[1773008622782,14.94550753,80.907,80.821,15.63233313]
[1773008623186,14.94550753,80.907,80.846,11.132]
[1773008623890,14.94550753,80.907,80.855,11.131]
[1773008624386,14.94550753,80.905,80.845,11.132]
[1773008624589,14.94550753,80.905,80.838,15.63233313]
[1773008625187,14.94550753,80.905,80.821,15.63233313]
[1773008626293,14.94550753,80.883,80.803,15.63233313]
[1773008627093,14.94550753,80.883,80.823,11.135]
[1773008627789,14.94550753,80.883,80.761,15.63233313]
[1773008628191,14.94550753,80.853,80.761,15.63233313]
[1773008628494,14.94550753,80.853,80.79,11.14]
[1773008629795,14.94550753,80.842,80.78,11.141]
[1773008630398,14.94550753,80.842,80.784,11.141]
[1773008630795,14.94550753,80.892,80.785,15.63233313]
[1773008630995,14.94550753,80.863,80.803,11.138]
[1773008631494,11.131,80.854,80.793,11.14]
[1773008631695,22.249,80.905,80.793,11.14]
[1773008631696,14.94550753,80.853,80.793,11.14]
[1773008632192,14.94550753,80.853,80.801,11.138]
[1773008633193,14.94550753,80.851,80.789,11.14]
[1773008633897,14.94550753,80.851,80.785,15.63233313]
[1773008634900,14.94550753,80.851,80.805,11.138]
[1773008635297,14.94550753,80.872,80.822,11.136]
[1773008636294,14.94550753,80.872,80.83,11.135]
[1773008636495,14.94550753,80.923,80.806,15.63233313]
[1773008636700,22.242,80.93,80.806,15.63233313]
[1773008636701,14.94550753,80.921,80.806,15.63233313]
[1773008637103,14.94550753,80.871,80.816,11.136]
[1773008637603,14.94550753,80.871,80.806,15.63233313]
[1773008637800,14.94550753,80.861,80.806,15.63233313]
[1773008638904,14.94550753,80.861,80.766,22.287]
[1773008638905,14.94550753,80.861,80.785,15.63233313]
[1773008639902,14.94550753,80.858,80.802,11.138]
[1773008640408,14.94550753,80.875,80.812,15.63233313]
[1773008640604,14.94550753,80.875,80.764,15.63233313]
[1773008641208,14.94550753,80.862,80.761,15.63233313]
[1773008642005,22.248,80.908,80.76,210.34616702]
[1773008642006,14.94550753,80.849,80.785,11.141]
[1773008642212,14.94550753,80.849,80.778,15.63233313]
[1773008642607,14.94550753,80.846,80.793,11.14]
[1773008643214,14.94550753,80.846,80.801,11.138]
[1773008643408,14.94550753,80.846,80.761,14.68981313]
[1773008643606,14.65105101,80.822,80.761,14.68981313]
[1773008644413,14.65105101,80.816,80.745,14.68981313]
[1773008644625,14.65105101,80.816,80.69,14.68981313]
[1773008644810,14.65105101,80.796,80.738,11.147]
[1773008645010,14.65105101,80.796,80.729,14.68981313]
[1773008645615,14.65105101,80.796,80.74,11.147]
[1773008646816,15.23665525,80.792,80.74,11.147]
[1773008648516,15.23665525,80.792,80.74,15.34438941]
[1773008649319,15.23665525,80.821,80.745,15.34438941]
[1773008650021,15.23665525,80.821,80.761,15.34438941]
[1773008650416,11.10636512,80.867,80.653,173.59]
[1773008650417,15.23665525,80.811,80.753,11.145]
[1773008650614,15.23665525,80.811,80.745,15.34438941]
[1773008651121,15.23665525,80.809,80.752,11.145]
[1773008651420,15.23665525,80.809,80.745,15.34438941]
[1773008651618,15.23665525,80.826,80.745,15.34438941]
[1773008652523,15.23665525,80.823,80.745,15.34438941]
[1773008653918,15.23665525,80.816,80.763,11.144]
[1773008654521,15.23665525,80.812,80.728,15.34438941]
[1773008655623,15.23665525,80.809,80.746,11.146]
[1773008656925,15.23665525,80.804,80.746,11.146]
[1773008657223,15.23665525,80.804,80.755,11.145]
[1773008657421,15.23665525,80.848,80.743,15.34438941]
[1773008657724,15.23665525,80.846,80.743,15.34438941]
[1773008658124,11.10636512,80.863,80.743,15.34438941]
[1773008658125,15.23665525,80.829,80.743,15.34438941]
[1773008659119,15.23665525,80.815,80.743,15.34438941]
[1773008660126,15.23665525,80.813,80.761,11.144]
[1773008660725,15.23665525,80.813,80.769,11.143]
[1773008660927,15.23665525,80.85,80.769,11.143]
[1773008661125,15.23665525,80.848,80.769,11.143]
[1773008661827,15.23665525,80.829,80.776,11.142]
[1773008663921,11.10636512,80.864,80.76,15.34438941]
[1773008663922,15.23665525,80.825,80.785,11.141]
[1773008665930,15.23665525,80.841,80.775,15.34438941]
[1773008666523,15.23665525,80.841,80.79,15.34438941]
[1773008666731,15.23665525,80.878,80.79,15.34438941]
[1773008666927,15.23665525,80.877,80.79,15.34438941]
[1773008667827,15.23665525,80.853,80.79,26.48438941]
[1773008668034,15.23665525,80.853,80.749,15.34438941]
[1773008668527,15.23665525,80.846,80.795,11.139]
[1773008668733,15.23665525,80.846,80.783,15.34438941]
[1773008669731,15.23665525,80.846,80.803,11.138]
[1773008669933,15.23665525,80.846,80.749,15.34438941]
[1773008670330,15.23665525,80.846,80.779,15.34438941]
[1773008671932,11.10636512,80.874,80.779,15.34438941]
[1773008671933,15.23665525,80.836,80.781,11.141]
[1773008672128,15.23665525,80.836,80.779,15.34438941]
[1773008673237,11.135,80.828,80.779,26.48638941]
[1773008673438,15.23665525,80.836,80.779,11.142]
[1773008673637,26.37065525,80.836,80.784,11.141]
[1773008673837,15.46858019,80.835,80.784,11.141]
[1773008674638,15.46858019,80.829,80.763,14.90614404]
[1773008675131,11.136,80.822,80.774,11.142]
[1773008675436,15.46858019,80.821,80.774,11.142]
[1773008675737,26.60458019,80.818,80.763,26.05014404]
[1773008676231,26.60458019,80.818,80.763,14.90614404]
[1773008676232,15.46858019,80.818,80.763,14.90614404]
[1773008677228,15.46858019,80.818,80.741,14.90614404]
[1773008677931,15.46858019,80.815,80.741,14.90614404]
[1773008678930,15.46858019,80.815,80.682,2.15515907]
[1773008678931,15.46858019,80.815,80.768,14.90614404]
[1773008679338,15.46858019,80.855,80.768,14.90614404]
[1773008679636,15.46858019,80.83,80.769,26.04914404]
[1773008680137,26.60358019,80.825,80.769,26.04914404]
[1773008680338,26.60358019,80.825,80.772,11.142]
[1773008680532,15.46858019,80.824,80.772,11.142]
[1773008680839,15.46858019,80.824,80.77,14.90614404]
[1773008681943,11.137,80.815,80.77,14.90614404]
[1773008682640,11.136,80.823,80.77,26.04914404]
[1773008682841,11.136,80.823,80.77,14.90614404]